[Event "Live Chess"]
[Site "Chess.com"]
[Date "2010.12.28"]
[Round "-"]
[White "amritln"]
[Black "hipposcottimus"]
[Result "0-1"]
[CurrentPosition "r7/7Q/pp3kn1/2p1br1P/P1P3Kq/5P2/1P4P1/8 w - -"]
[Timezone "UTC"]
[ECO "C57"]
[ECOUrl "https://www.chess.com/openings/Italian-Game-Knight-Attack-Polerio-Defense"]
[UTCDate "2010.12.28"]
[UTCTime "21:19:39"]
[WhiteElo "1157"]
[BlackElo "1405"]
[TimeControl "180+5"]
[Termination "hipposcottimus won by checkmate"]
[StartTime "21:19:39"]
[EndDate "2010.12.28"]
[EndTime "21:30:24"]
[Link "https://www.chess.com/game/live/81970091"]

1. e4 {[%clk 0:03:00]} 1... e5 {[%clk 0:03:00]} 2. Nf3 {[%clk 0:03:03.2]} 2... Nc6 {[%clk 0:03:04.2]} 3. Bc4 {[%clk 0:03:05.8]} 3... Nf6 {[%clk 0:03:07.4]} 4. Ng5 {[%clk 0:03:07.9]} 4... d5 {[%clk 0:03:12]} 5. exd5 {[%clk 0:03:09.4]} 5... Na5 {[%clk 0:03:14.2]} 6. Bb3 {[%clk 0:03:03.9]} 6... Nxb3 {[%clk 0:03:15]} 7. axb3 {[%clk 0:03:05.4]} 7... Nxd5 {[%clk 0:03:19.7]} 8. d4 {[%clk 0:03:01.1]} 8... Be7 {[%clk 0:03:22.1]} 9. Ne4 {[%clk 0:02:39.8]} 9... f6 {[%clk 0:03:20.5]} 10. c4 {[%clk 0:02:34.4]} 10... Bb4+ {[%clk 0:03:06.7]} 11. Nbc3 {[%clk 0:02:26.3]} 11... Ne7 {[%clk 0:03:01.4]} 12. O-O {[%clk 0:02:23.9]} 12... O-O {[%clk 0:02:53.5]} 13. Ne2 {[%clk 0:02:17.9]} 13... exd4 {[%clk 0:02:55.2]} 14. Nxd4 {[%clk 0:02:05.8]} 14... f5 {[%clk 0:01:40.4]} 15. Ng3 {[%clk 0:01:39.7]} 15... b6 {[%clk 0:01:32.8]} 16. Ra4 {[%clk 0:01:24.8]} 16... f4 {[%clk 0:01:06.7]} 17. Nh5 {[%clk 0:01:20.9]} 17... c5 {[%clk 0:01:01.5]} 18. Bxf4 {[%clk 0:00:53.2]} 18... Bd7 {[%clk 0:00:26.5]} 19. Nb5 {[%clk 0:00:33.8]} 19... a6 {[%clk 0:00:24.9]} 20. Nd6 {[%clk 0:00:33.7]} 20... Bxa4 {[%clk 0:00:25.7]} 21. Nxg7 {[%clk 0:00:32.4]} 21... Kxg7 {[%clk 0:00:27.9]} 22. Qg4+ {[%clk 0:00:33.9]} 22... Ng6 {[%clk 0:00:32.1]} 23. bxa4 {[%clk 0:00:31.4]} 23... Rxf4 {[%clk 0:00:35.1]} 24. Nf5+ {[%clk 0:00:25.5]} 24... Kf6 {[%clk 0:00:36]} 25. Qh3 {[%clk 0:00:17.7]} 25... Rxf5 {[%clk 0:00:40.5]} 26. Qxh7 {[%clk 0:00:18.5]} 26... Qd3 {[%clk 0:00:40.2]} 27. Re1 {[%clk 0:00:18.6]} 27... Bxe1 {[%clk 0:00:41.5]} 28. f3 {[%clk 0:00:18.9]} 28... Qe3+ {[%clk 0:00:41.5]} 29. Kh1 {[%clk 0:00:20.6]} 29... Qf2 {[%clk 0:00:43.9]} 30. h4 {[%clk 0:00:19.2]} 30... Qf1+ {[%clk 0:00:41.3]} 31. Kh2 {[%clk 0:00:22.3]} 31... Bg3+ {[%clk 0:00:42.6]} 32. Kh3 {[%clk 0:00:24.3]} 32... Be5 {[%clk 0:00:38.3]} 33. h5 {[%clk 0:00:25.3]} 33... Qh1+ {[%clk 0:00:41.3]} 34. Kg4 {[%clk 0:00:26.2]} 34... Qh4# {[%clk 0:00:46]} 0-1

[Event "Live Chess"]
[Site "Chess.com"]
[Date "2010.12.28"]
[Round "-"]
[White "hipposcottimus"]
[Black "Escac_al_cuc"]
[Result "1-0"]
[CurrentPosition "2r2rk1/2P1bppp/2b2n2/BB3P2/P3pR2/1P6/6PP/3Q2K1 w - -"]
[Timezone "UTC"]
[ECO "B20"]
[ECOUrl "https://www.chess.com/openings/Sicilian-Defense-Staunton-Cochrane-Variation-2...Nc6"]
[UTCDate "2010.12.28"]
[UTCTime "21:03:18"]
[WhiteElo "1402"]
[BlackElo "1355"]
[TimeControl "300"]
[Termination "hipposcottimus won by resignation"]
[StartTime "21:03:18"]
[EndDate "2010.12.28"]
[EndTime "21:09:03"]
[Link "https://www.chess.com/game/live/81965685"]

1. e4 {[%clk 0:05:00]} 1... c5 {[%clk 0:05:00]} 2. c4 {[%clk 0:04:55.9]} 2... Nc6 {[%clk 0:04:55.4]} 3. d3 {[%clk 0:04:53.9]} 3... d6 {[%clk 0:04:53.6]} 4. Nc3 {[%clk 0:04:52.9]} 4... Bd7 {[%clk 0:04:51.4]} 5. Nf3 {[%clk 0:04:52]} 5... e6 {[%clk 0:04:49.9]} 6. Be2 {[%clk 0:04:50.6]} 6... a6 {[%clk 0:04:48.5]} 7. a4 {[%clk 0:04:48.9]} 7... Be7 {[%clk 0:04:36.4]} 8. O-O {[%clk 0:04:45.6]} 8... Nf6 {[%clk 0:04:34.3]} 9. d4 {[%clk 0:04:37.5]} 9... cxd4 {[%clk 0:04:30.7]} 10. Nxd4 {[%clk 0:04:36.5]} 10... Qc7 {[%clk 0:04:28.9]} 11. Be3 {[%clk 0:04:29.8]} 11... Ne5 {[%clk 0:04:14.6]} 12. b3 {[%clk 0:04:19.1]} 12... O-O {[%clk 0:04:06.6]} 13. f4 {[%clk 0:04:16]} 13... Ng6 {[%clk 0:03:53.5]} 14. Bd3 {[%clk 0:04:05.7]} 14... b5 {[%clk 0:03:50.4]} 15. cxb5 {[%clk 0:04:00.5]} 15... Qxc3 {[%clk 0:03:47.6]} 16. b6 {[%clk 0:03:50.6]} 16... e5 {[%clk 0:03:15.1]} 17. Ne2 {[%clk 0:03:25.4]} 17... Qc6 {[%clk 0:03:04.2]} 18. f5 {[%clk 0:03:09.4]} 18... Nf4 {[%clk 0:02:58.9]} 19. Nxf4 {[%clk 0:03:00.4]} 19... exf4 {[%clk 0:02:55.8]} 20. Rxf4 {[%clk 0:02:58.1]} 20... a5 {[%clk 0:02:35.1]} 21. Rc1 {[%clk 0:02:44.6]} 21... Qb7 {[%clk 0:02:32.2]} 22. Rc7 {[%clk 0:02:40.3]} 22... Qxc7 {[%clk 0:02:23.5]} 23. bxc7 {[%clk 0:02:37.7]} 23... Rac8 {[%clk 0:02:21.4]} 24. Bb6 {[%clk 0:02:35.8]} 24... Bc6 {[%clk 0:02:14.7]} 25. Bxa5 {[%clk 0:02:33.6]} 25... d5 {[%clk 0:02:02.6]} 26. Bb5 {[%clk 0:02:29.9]} 26... dxe4 {[%clk 0:01:58.8]} 1-0

[Event "Live Chess"]
[Site "Chess.com"]
[Date "2010.12.28"]
[Round "-"]
[White "mmm1988"]
[Black "hipposcottimus"]
[Result "1-0"]
[CurrentPosition "r4r1k/pp4p1/7p/3p3R/8/P1Pb2PN/1P4BP/R5K1 b - -"]
[Timezone "UTC"]
[ECO "A07"]
[ECOUrl "https://www.chess.com/openings/Kings-Indian-Attack-2...Nc6-3.Bg2-e5-4.O-O"]
[UTCDate "2010.12.28"]
[UTCTime "20:43:05"]
[WhiteElo "1292"]
[BlackElo "1395"]
[TimeControl "240+2"]
[Termination "mmm1988 won on time"]
[StartTime "20:43:05"]
[EndDate "2010.12.28"]
[EndTime "20:46:55"]
[Link "https://www.chess.com/game/live/81958633"]

1. Nf3 {[%clk 0:04:00]} 1... d5 {[%clk 0:04:00]} 2. g3 {[%clk 0:04:00.5]} 2... Nc6 {[%clk 0:03:56.3]} 3. Bg2 {[%clk 0:04:01.4]} 3... e5 {[%clk 0:03:56.1]} 4. O-O {[%clk 0:04:03]} 4... f5 {[%clk 0:03:55.6]} 5. d3 {[%clk 0:04:04.4]} 5... Nf6 {[%clk 0:03:52.3]} 6. Bg5 {[%clk 0:04:04.6]} 6... Qd6 {[%clk 0:03:50.6]} 7. c3 {[%clk 0:04:05.3]} 7... Be7 {[%clk 0:03:37.4]} 8. Nbd2 {[%clk 0:04:03.5]} 8... O-O {[%clk 0:03:36]} 9. Re1 {[%clk 0:04:02.2]} 9... Nh5 {[%clk 0:03:35.8]} 10. Bxe7 {[%clk 0:03:55.3]} 10... Nxe7 {[%clk 0:03:37.4]} 11. a3 {[%clk 0:03:51.7]} 11... Ng6 {[%clk 0:03:37.6]} 12. Qb3 {[%clk 0:03:49]} 12... f4 {[%clk 0:03:36.8]} 13. e4 {[%clk 0:03:46.7]} 13... fxg3 {[%clk 0:03:32.8]} 14. fxg3 {[%clk 0:03:45.2]} 14... Kh8 {[%clk 0:03:22.6]} 15. exd5 {[%clk 0:03:45.9]} 15... c6 {[%clk 0:03:02.1]} 16. Ne4 {[%clk 0:03:42.1]} 16... Qxd5 {[%clk 0:02:59.8]} 17. Qxd5 {[%clk 0:03:41.1]} 17... cxd5 {[%clk 0:03:01.5]} 18. Neg5 {[%clk 0:03:33.2]} 18... h6 {[%clk 0:02:59.5]} 19. Nh3 {[%clk 0:03:21.7]} 19... Bf5 {[%clk 0:03:00.6]} 20. Nxe5 {[%clk 0:03:17.3]} 20... Nxe5 {[%clk 0:02:36.6]} 21. Rxe5 {[%clk 0:03:15.8]} 21... Bxd3 {[%clk 0:02:38.2]} 22. Rxh5 {[%clk 0:03:09.4]} 1-0

[Event "Live Chess"]
[Site "Chess.com"]
[Date "2010.12.28"]
[Round "-"]
[White "hipposcottimus"]
[Black "caslav"]
[Result "1-0"]
[CurrentPosition "r1b1k2r/pp1pbp2/2n4p/2p2p2/5N2/P4B2/1PP2PPP/R2QR1K1 b kq -"]
[Timezone "UTC"]
[ECO "C40"]
[ECOUrl "https://www.chess.com/openings/Kings-Pawn-Opening-Kings-Knight-Variation"]
[UTCDate "2010.12.28"]
[UTCTime "20:01:27"]
[WhiteElo "1413"]
[BlackElo "1364"]
[TimeControl "600"]
[Termination "hipposcottimus won by resignation"]
[StartTime "20:01:27"]
[EndDate "2010.12.28"]
[EndTime "20:04:05"]
[Link "https://www.chess.com/game/live/81947864"]

1. e4 {[%clk 0:10:00]} 1... e5 {[%clk 0:10:00]} 2. Nf3 {[%clk 0:09:58.5]} 2... h6 {[%clk 0:09:58.3]} 3. d4 {[%clk 0:09:57.3]} 3... exd4 {[%clk 0:09:56.6]} 4. Nxd4 {[%clk 0:09:55.9]} 4... Qe7 {[%clk 0:09:55.5]} 5. Nc3 {[%clk 0:09:54.9]} 5... Qb4 {[%clk 0:09:51.2]} 6. a3 {[%clk 0:09:48.9]} 6... Qe7 {[%clk 0:09:48.6]} 7. Be2 {[%clk 0:09:47.2]} 7... c5 {[%clk 0:09:43]} 8. Nf5 {[%clk 0:09:44.7]} 8... Qe6 {[%clk 0:09:33.4]} 9. O-O {[%clk 0:09:44.2]} 9... Nf6 {[%clk 0:09:28.6]} 10. Bf3 {[%clk 0:09:37.7]} 10... g6 {[%clk 0:09:24]} 11. e5 {[%clk 0:09:23.9]} 11... gxf5 {[%clk 0:09:19.6]} 12. exf6 {[%clk 0:09:22.4]} 12... Qxf6 {[%clk 0:09:18.6]} 13. Be3 {[%clk 0:09:09.4]} 13... Nc6 {[%clk 0:09:10]} 14. Nd5 {[%clk 0:09:07.5]} 14... Qd6 {[%clk 0:09:05.2]} 15. Re1 {[%clk 0:08:54.3]} 15... Be7 {[%clk 0:08:56.2]} 16. Bf4 {[%clk 0:08:41.3]} 16... Qxf4 {[%clk 0:08:51.6]} 17. Nxf4 {[%clk 0:08:39]} 1-0

[Event "Live Chess"]
[Site "Chess.com"]
[Date "2010.12.28"]
[Round "-"]
[White "lupa731"]
[Black "hipposcottimus"]
[Result "1-0"]
[CurrentPosition "r4r1k/ppp3pp/2n2q2/3Q2p1/2P5/P4B1P/1PP2PP1/R3R1K1 b - -"]
[Timezone "UTC"]
[ECO "C42"]
[ECOUrl "https://www.chess.com/openings/Petrovs-Defense-Three-Knights-Game"]
[UTCDate "2010.12.28"]
[UTCTime "19:44:15"]
[WhiteElo "1280"]
[BlackElo "1406"]
[TimeControl "360"]
[Termination "lupa731 won on time"]
[StartTime "19:44:15"]
[EndDate "2010.12.28"]
[EndTime "19:47:35"]
[Link "https://www.chess.com/game/live/81941256"]

1. e4 {[%clk 0:06:00]} 1... e5 {[%clk 0:06:00]} 2. Nc3 {[%clk 0:05:58.1]} 2... Nf6 {[%clk 0:05:55.4]} 3. Nf3 {[%clk 0:05:55.1]} 3... Bb4 {[%clk 0:05:54.6]} 4. a3 {[%clk 0:05:50.1]} 4... Bxc3 {[%clk 0:05:52.6]} 5. dxc3 {[%clk 0:05:48.2]} 5... Nxe4 {[%clk 0:05:52.3]} 6. Qe2 {[%clk 0:05:42.2]} 6... d5 {[%clk 0:05:36.1]} 7. Nxe5 {[%clk 0:05:37.4]} 7... f6 {[%clk 0:05:33.7]} 8. Nf3 {[%clk 0:05:30.3]} 8... Bg4 {[%clk 0:05:31.5]} 9. h3 {[%clk 0:05:26.9]} 9... Bxf3 {[%clk 0:05:24.9]} 10. Qxf3 {[%clk 0:05:24.4]} 10... Qe7 {[%clk 0:05:22.8]} 11. Be2 {[%clk 0:05:15.8]} 11... Nc6 {[%clk 0:05:17.6]} 12. O-O {[%clk 0:05:13.3]} 12... O-O {[%clk 0:05:08.2]} 13. c4 {[%clk 0:05:03.5]} 13... Ng5 {[%clk 0:04:59.4]} 14. Qxd5+ {[%clk 0:04:52.7]} 14... Kh8 {[%clk 0:04:59]} 15. Bxg5 {[%clk 0:04:47.5]} 15... fxg5 {[%clk 0:04:55.5]} 16. Rfe1 {[%clk 0:04:33.1]} 16... Qf6 {[%clk 0:04:47.6]} 17. Bf3 {[%clk 0:04:01.6]} 1-0

[Event "Live Chess"]
[Site "Chess.com"]
[Date "2010.12.28"]
[Round "-"]
[White "hipposcottimus"]
[Black "lupa731"]
[Result "0-1"]
[CurrentPosition "r4r2/kp4Q1/5P1p/7B/8/8/6PP/5q1K w - -"]
[Timezone "UTC"]
[ECO "C55"]
[ECOUrl "https://www.chess.com/openings/Italian-Game-Anti-Fried-Liver-Defense"]
[UTCDate "2010.12.28"]
[UTCTime "19:30:01"]
[WhiteElo "1416"]
[BlackElo "1268"]
[TimeControl "360"]
[Termination "lupa731 won by checkmate"]
[StartTime "19:30:01"]
[EndDate "2010.12.28"]
[EndTime "19:38:48"]
[Link "https://www.chess.com/game/live/81938381"]

1. e4 {[%clk 0:06:00]} 1... e5 {[%clk 0:06:00]} 2. Nf3 {[%clk 0:05:57.5]} 2... Nc6 {[%clk 0:05:56.5]} 3. Bc4 {[%clk 0:05:55.1]} 3... h6 {[%clk 0:05:53.9]} 4. d4 {[%clk 0:05:47.1]} 4... exd4 {[%clk 0:05:50]} 5. Nxd4 {[%clk 0:05:45.2]} 5... Nxd4 {[%clk 0:05:47.8]} 6. Qxd4 {[%clk 0:05:44.3]} 6... Qe7 {[%clk 0:05:40.4]} 7. Bd2 {[%clk 0:05:34.6]} 7... Nf6 {[%clk 0:05:38.8]} 8. Nc3 {[%clk 0:05:32.5]} 8... a6 {[%clk 0:05:33.2]} 9. a4 {[%clk 0:05:28.1]} 9... d6 {[%clk 0:05:24.8]} 10. Nd5 {[%clk 0:04:58.2]} 10... Nxd5 {[%clk 0:05:20.2]} 11. Qxd5 {[%clk 0:04:55]} 11... c6 {[%clk 0:05:10.5]} 12. Qd4 {[%clk 0:04:51.4]} 12... Bg4 {[%clk 0:04:59.4]} 13. O-O {[%clk 0:04:46.6]} 13... Be6 {[%clk 0:04:48.9]} 14. Bd3 {[%clk 0:04:17.3]} 14... c5 {[%clk 0:04:39.9]} 15. Qe3 {[%clk 0:04:09.2]} 15... Qf6 {[%clk 0:04:30.7]} 16. Bc3 {[%clk 0:04:03.7]} 16... Qg5 {[%clk 0:04:21]} 17. f4 {[%clk 0:03:58.4]} 17... Qd8 {[%clk 0:04:11.1]} 18. f5 {[%clk 0:03:57.9]} 18... Bd7 {[%clk 0:03:59.9]} 19. e5 {[%clk 0:03:55.8]} 19... dxe5 {[%clk 0:03:57.6]} 20. Qxe5+ {[%clk 0:03:53.2]} 20... Be7 {[%clk 0:03:50.8]} 21. Qxg7 {[%clk 0:03:50.9]} 21... Rf8 {[%clk 0:03:40.2]} 22. f6 {[%clk 0:03:50.6]} 22... Bd6 {[%clk 0:03:34.3]} 23. Rae1+ {[%clk 0:03:44.1]} 23... Be6 {[%clk 0:03:32.5]} 24. Bc4 {[%clk 0:03:39.9]} 24... Kd7 {[%clk 0:03:24.7]} 25. Bxe6+ {[%clk 0:03:34.6]} 25... Kc6 {[%clk 0:03:19.6]} 26. Bxf7 {[%clk 0:03:25]} 26... Kb6 {[%clk 0:03:08.1]} 27. Be5 {[%clk 0:03:16.6]} 27... Bxe5 {[%clk 0:03:04.4]} 28. Rxe5 {[%clk 0:03:02.6]} 28... Qd4+ {[%clk 0:03:01.5]} 29. Kh1 {[%clk 0:03:00.1]} 29... Qxe5 {[%clk 0:02:57.6]} 30. c3 {[%clk 0:02:26.8]} 30... Ka7 {[%clk 0:02:54.9]} 31. b4 {[%clk 0:02:24]} 31... cxb4 {[%clk 0:02:50.4]} 32. cxb4 {[%clk 0:02:21.9]} 32... Qd4 {[%clk 0:02:38.9]} 33. b5 {[%clk 0:02:01.3]} 33... Qxa4 {[%clk 0:02:30.5]} 34. bxa6 {[%clk 0:01:29.8]} 34... Qxa6 {[%clk 0:02:26.9]} 35. Bh5 {[%clk 0:01:11.6]} 35... Qxf1# {[%clk 0:02:19.6]} 0-1

[Event "Live Chess"]
[Site "Chess.com"]
[Date "2010.12.28"]
[Round "-"]
[White "lupa731"]
[Black "hipposcottimus"]
[Result "1-0"]
[CurrentPosition "8/5R2/p1p3p1/1p1p2k1/6B1/2P4P/PP4PK/5R2 b - -"]
[Timezone "UTC"]
[ECO "D02"]
[ECOUrl "https://www.chess.com/openings/Queens-Pawn-Opening-Zukertort-Chigorin-Variation"]
[UTCDate "2010.12.28"]
[UTCTime "19:18:07"]
[WhiteElo "1255"]
[BlackElo "1427"]
[TimeControl "360"]
[Termination "lupa731 won on time"]
[StartTime "19:18:07"]
[EndDate "2010.12.28"]
[EndTime "19:29:20"]
[Link "https://www.chess.com/game/live/81934757"]

1. d4 {[%clk 0:06:00]} 1... d5 {[%clk 0:06:00]} 2. Nf3 {[%clk 0:05:58.6]} 2... Nc6 {[%clk 0:05:58.3]} 3. h3 {[%clk 0:05:57.3]} 3... f5 {[%clk 0:05:54.6]} 4. Nc3 {[%clk 0:05:55.9]} 4... e6 {[%clk 0:05:35.4]} 5. Bf4 {[%clk 0:05:54.3]} 5... Be7 {[%clk 0:05:28.1]} 6. Nb5 {[%clk 0:05:51.2]} 6... e5 {[%clk 0:05:10.4]} 7. dxe5 {[%clk 0:05:46.6]} 7... Be6 {[%clk 0:05:07.5]} 8. e3 {[%clk 0:05:32.6]} 8... Bg5 {[%clk 0:04:51.5]} 9. Bxg5 {[%clk 0:05:24.2]} 9... Nge7 {[%clk 0:04:39.5]} 10. Bd3 {[%clk 0:05:05.4]} 10... O-O {[%clk 0:04:30.1]} 11. O-O {[%clk 0:05:02.2]} 11... a6 {[%clk 0:04:26.4]} 12. Nbd4 {[%clk 0:04:51.2]} 12... Qd7 {[%clk 0:04:15.3]} 13. c3 {[%clk 0:04:31.8]} 13... Ng6 {[%clk 0:04:08.3]} 14. Nxe6 {[%clk 0:04:13.2]} 14... Qxe6 {[%clk 0:04:02.5]} 15. Qb3 {[%clk 0:04:08.3]} 15... Ncxe5 {[%clk 0:03:55.4]} 16. Nxe5 {[%clk 0:04:02]} 16... Nxe5 {[%clk 0:03:54.5]} 17. Rfd1 {[%clk 0:03:34.7]} 17... b5 {[%clk 0:03:51]} 18. Bf4 {[%clk 0:03:23.4]} 18... c6 {[%clk 0:03:38.3]} 19. Bxe5 {[%clk 0:03:11.8]} 19... Qxe5 {[%clk 0:03:37.9]} 20. f4 {[%clk 0:03:03.2]} 20... Qxe3+ {[%clk 0:03:33.8]} 21. Kh2 {[%clk 0:03:00.1]} 21... Qxf4+ {[%clk 0:03:32.9]} 22. Kg1 {[%clk 0:02:56.9]} 22... Rf6 {[%clk 0:03:22.7]} 23. Rf1 {[%clk 0:02:55.2]} 23... Qe3+ {[%clk 0:03:19.4]} 24. Kh2 {[%clk 0:02:50.5]} 24... Rg6 {[%clk 0:03:17.4]} 25. Rf3 {[%clk 0:02:31.3]} 25... Qd2 {[%clk 0:02:56.6]} 26. Rg1 {[%clk 0:02:20.6]} 26... Rf8 {[%clk 0:02:11.8]} 27. Bxf5 {[%clk 0:02:11.7]} 27... Rg5 {[%clk 0:01:57.2]} 28. Bg4 {[%clk 0:02:03.6]} 28... h5 {[%clk 0:01:46.9]} 29. Be6+ {[%clk 0:01:54.1]} 29... Kh7 {[%clk 0:01:20.1]} 30. Rxf8 {[%clk 0:01:48.4]} 30... g6 {[%clk 0:00:59.5]} 31. Rf7+ {[%clk 0:01:43.7]} 31... Kh6 {[%clk 0:00:51.8]} 32. Qd1 {[%clk 0:01:40]} 32... Qe3 {[%clk 0:00:36.8]} 33. Qe1 {[%clk 0:01:20.2]} 33... Qg3+ {[%clk 0:00:29.6]} 34. Qxg3 {[%clk 0:01:16.9]} 34... h4 {[%clk 0:00:21.4]} 35. Qxh4+ {[%clk 0:01:11.8]} 35... Rh5 {[%clk 0:00:15.6]} 36. Qxh5+ {[%clk 0:01:05.9]} 36... Kxh5 {[%clk 0:00:09.8]} 37. Bg4+ {[%clk 0:01:00.2]} 37... Kg5 {[%clk 0:00:09.5]} 38. Rgf1 {[%clk 0:00:56.5]} 1-0

[Event "Live Chess"]
[Site "Chess.com"]
[Date "2010.12.28"]
[Round "-"]
[White "hajro65"]
[Black "hipposcottimus"]
[Result "1-0"]
[CurrentPosition "8/pp4pk/2p3b1/4Q3/3P1q1p/2P2N2/PP3KP1/8 w - -"]
[Timezone "UTC"]
[ECO "C61"]
[ECOUrl "https://www.chess.com/openings/Ruy-Lopez-Opening-Birds-Defense"]
[UTCDate "2010.12.28"]
[UTCTime "18:36:39"]
[WhiteElo "1505"]
[BlackElo "1438"]
[TimeControl "600"]
[Termination "hajro65 won by resignation"]
[StartTime "18:36:39"]
[EndDate "2010.12.28"]
[EndTime "18:55:08"]
[Link "https://www.chess.com/game/live/81922533"]

1. e4 {[%clk 0:10:00]} 1... e5 {[%clk 0:10:00]} 2. Nf3 {[%clk 0:09:57.1]} 2... Nc6 {[%clk 0:09:53.4]} 3. Bb5 {[%clk 0:09:52.8]} 3... Nd4 {[%clk 0:09:50.9]} 4. Be2 {[%clk 0:09:35.9]} 4... d5 {[%clk 0:09:42.7]} 5. Nxe5 {[%clk 0:09:22.5]} 5... dxe4 {[%clk 0:09:41.1]} 6. O-O {[%clk 0:09:12.5]} 6... Bd6 {[%clk 0:09:11.1]} 7. Nc4 {[%clk 0:09:05.8]} 7... Nf6 {[%clk 0:09:08.5]} 8. c3 {[%clk 0:08:58.4]} 8... Ne6 {[%clk 0:08:59.2]} 9. d4 {[%clk 0:08:45.9]} 9... c6 {[%clk 0:08:46.1]} 10. Ne3 {[%clk 0:08:33.7]} 10... Bc7 {[%clk 0:08:31]} 11. f3 {[%clk 0:08:21.3]} 11... O-O {[%clk 0:08:10.1]} 12. fxe4 {[%clk 0:08:08.3]} 12... Nxe4 {[%clk 0:08:02.6]} 13. Bf3 {[%clk 0:07:55.4]} 13... N6g5 {[%clk 0:07:07.6]} 14. Bxe4 {[%clk 0:07:34.9]} 14... Nxe4 {[%clk 0:07:04.6]} 15. Nd2 {[%clk 0:07:30.8]} 15... Bxh2+ {[%clk 0:05:33]} 16. Kxh2 {[%clk 0:07:25.3]} 16... Qh4+ {[%clk 0:05:29.8]} 17. Kg1 {[%clk 0:07:19.7]} 17... Ng3 {[%clk 0:05:19.3]} 18. Rf3 {[%clk 0:06:45.1]} 18... f5 {[%clk 0:03:57.5]} 19. Nef1 {[%clk 0:06:02.1]} 19... Qh1+ {[%clk 0:02:42.1]} 20. Kf2 {[%clk 0:05:57.4]} 20... f4 {[%clk 0:02:37.2]} 21. Qb3+ {[%clk 0:04:50.4]} 21... Kh8 {[%clk 0:02:21.8]} 22. Nxg3 {[%clk 0:04:48.1]} 22... fxg3+ {[%clk 0:02:11.4]} 23. Kxg3 {[%clk 0:04:43.6]} 23... Rxf3+ {[%clk 0:01:32.3]} 24. Nxf3 {[%clk 0:04:38]} 24... Bf5 {[%clk 0:01:10.2]} 25. Qf7 {[%clk 0:03:37.6]} 25... Bg6 {[%clk 0:01:00.3]} 26. Qf4 {[%clk 0:03:22.3]} 26... Kg8 {[%clk 0:00:50.7]} 27. Qh4 {[%clk 0:02:47.8]} 27... Qd1 {[%clk 0:00:22.7]} 28. Qh2 {[%clk 0:02:31.7]} 28... Qd3 {[%clk 0:00:21.1]} 29. Qg1 {[%clk 0:02:23.7]} 29... Re8 {[%clk 0:00:18.1]} 30. Bf4 {[%clk 0:02:16.3]} 30... h5 {[%clk 0:00:16.9]} 31. Re1 {[%clk 0:02:08.6]} 31... Qf5 {[%clk 0:00:16.2]} 32. Rxe8+ {[%clk 0:02:01.3]} 32... Bxe8 {[%clk 0:00:15.8]} 33. Kf2 {[%clk 0:01:56.4]} 33... Qxf4 {[%clk 0:00:14.2]} 34. Qe1 {[%clk 0:01:52.9]} 34... Bg6 {[%clk 0:00:11.2]} 35. Qe6+ {[%clk 0:01:47.5]} 35... Kh7 {[%clk 0:00:09.6]} 36. Qe5 {[%clk 0:01:40.8]} 36... h4 {[%clk 0:00:08.9]} 1-0

[Event "Live Chess"]
[Site "Chess.com"]
[Date "2010.12.28"]
[Round "-"]
[White "hipposcottimus"]
[Black "moskva-moskva"]
[Result "1-0"]
[CurrentPosition "3r2k1/p1qp4/1p3BP1/5nN1/8/7Q/PP2nP1P/3R1K2 b - -"]
[Timezone "UTC"]
[ECO "C00"]
[ECOUrl "https://www.chess.com/openings/French-Defense-Knight-Variation"]
[UTCDate "2010.12.28"]
[UTCTime "09:53:33"]
[WhiteElo "1445"]
[BlackElo "1297"]
[TimeControl "120+12"]
[Termination "hipposcottimus won by resignation"]
[StartTime "09:53:33"]
[EndDate "2010.12.28"]
[EndTime "10:00:36"]
[Link "https://www.chess.com/game/live/81790662"]

1. e4 {[%clk 0:02:00]} 1... e6 {[%clk 0:02:00]} 2. Nf3 {[%clk 0:02:11.7]} 2... c6 {[%clk 0:02:09.1]} 3. e5 {[%clk 0:02:23.4]} 3... Ne7 {[%clk 0:02:08.7]} 4. c4 {[%clk 0:02:34.5]} 4... Ng6 {[%clk 0:02:19.1]} 5. d4 {[%clk 0:02:44.5]} 5... Qa5+ {[%clk 0:02:29.1]} 6. Nc3 {[%clk 0:02:54.8]} 6... Bb4 {[%clk 0:02:36.4]} 7. Bd2 {[%clk 0:03:05.4]} 7... O-O {[%clk 0:02:40.5]} 8. Be2 {[%clk 0:03:14.9]} 8... Bxc3 {[%clk 0:02:46.2]} 9. Bxc3 {[%clk 0:03:24.3]} 9... Qc7 {[%clk 0:02:54.9]} 10. O-O {[%clk 0:03:33.3]} 10... b6 {[%clk 0:03:06.1]} 11. d5 {[%clk 0:03:44.6]} 11... exd5 {[%clk 0:03:11]} 12. cxd5 {[%clk 0:03:56]} 12... Ba6 {[%clk 0:03:20.7]} 13. Re1 {[%clk 0:04:02.7]} 13... Bxe2 {[%clk 0:03:30.8]} 14. Rxe2 {[%clk 0:04:14.3]} 14... cxd5 {[%clk 0:03:41.8]} 15. Qxd5 {[%clk 0:04:23.9]} 15... Nc6 {[%clk 0:03:48.4]} 16. Rd1 {[%clk 0:04:33]} 16... Rad8 {[%clk 0:03:52.3]} 17. Ng5 {[%clk 0:04:33.7]} 17... Nge7 {[%clk 0:03:53.7]} 18. Qf3 {[%clk 0:04:41.3]} 18... g6 {[%clk 0:03:43.2]} 19. Qh3 {[%clk 0:04:48.6]} 19... h5 {[%clk 0:03:53]} 20. g4 {[%clk 0:04:55.9]} 20... f6 {[%clk 0:03:30.3]} 21. exf6 {[%clk 0:04:59.2]} 21... Nf5 {[%clk 0:03:17.9]} 22. gxh5 {[%clk 0:05:02.8]} 22... Ncd4 {[%clk 0:03:20.8]} 23. hxg6 {[%clk 0:04:16.6]} 23... Nxe2+ {[%clk 0:02:57.4]} 24. Kf1 {[%clk 0:04:14.3]} 24... Rxf6 {[%clk 0:02:38.3]} 25. Bxf6 {[%clk 0:04:19.3]} 1-0